bitfinex/quotes_ETHUSD_20250213
["timestamp","ask_amount","ask_price","bid_price","bid_amount"]
[1739488351551,2.53096269,2670.4,2670.3,0.06577382]
[1739488351740,2.53096269,2670.4,2670.0,6.212328]
[1739488351980,2.53096269,2670.4,2670.3,0.06577382]
[1739488352275,2.53096269,2670.4,2670.0,6.212328]
[1739488352489,2.53096269,2670.4,2670.3,0.06577382]
[1739488352845,7.18441269,2670.4,2669.8,6.0343]
[1739488353082,2.252,2670.2,2669.9,3.81120382]
[1739488353289,2.802,2670.3,2670.0,3.74524]
[1739488353553,2.252,2670.3,2670.0,3.74524]
[1739488353782,2.252,2670.3,2670.1,3.81092382]
[1739488353988,2.53096269,2670.3,2670.2,3.74503]
[1739488354193,0.27896269,2670.3,2670.2,4.52513]
[1739488354691,0.27896269,2670.3,2670.2,4.59090382]
[1739488355566,2.252,2670.5,2670.2,4.59090382]
[1739488356363,2.252,2670.6,2670.3,3.74488]
[1739488356567,2.252,2670.6,2670.2,4.59090382]
[1739488356770,2.252,2670.6,2670.2,4.52513]
[1739488356971,2.53088343,2670.5,2670.3,0.06577382]
[1739488357389,2.53088343,2670.5,2670.2,0.7801]
[1739488357390,6.27554343,2670.5,2670.2,0.7801]
[1739488357568,6.27554343,2670.5,2670.4,0.06577382]
[1739488357768,2.53088343,2670.5,2670.1,8.9951]
[1739488358051,2.53088343,2670.5,2670.4,0.06577382]
[1739488358281,2.252,2670.5,2670.1,8.9951]
[1739488358499,2.252,2670.5,2670.2,3.74502]
[1739488358799,2.252,2670.5,2670.3,0.06577382]
[1739488359303,2.252,2670.5,2670.1,5.25]
[1739488359502,5.99671,2670.5,2670.1,5.25]
[1739488359658,3.74483,2670.4,2670.2,0.06576433]
[1739488359854,4.02406243,2670.4,2670.2,0.06576433]
[1739488360061,0.27923243,2670.4,2670.2,0.06576433]
[1739488360966,4.02406243,2670.4,2670.2,0.06576433]
[1739488361387,0.27923243,2670.3,2670.2,0.06576433]
[1739488361588,0.27923243,2670.3,2670.2,4.79437476]
[1739488362595,0.27923243,2670.3,2670.2,0.06576433]
[1739488363557,0.27923243,2670.3,2670.2,3.81079433]
[1739488366401,0.27923243,2670.3,2670.2,4.59419433]
[1739488368234,2.252,2670.8,2670.5,3.74455]
[1739488368734,2.252,2670.8,2670.6,3.81021482]
[1739488369125,2.252,2670.8,2670.6,0.06575482]
[1739488369823,0.27997364,2670.7,2670.6,0.06575482]
[1739488370835,0.27997364,2670.7,2670.5,3.74461]
[1739488371037,0.27997364,2670.7,2670.6,3.81022482]
[1739488372794,0.27997364,2670.7,2670.6,0.06575482]
[1739488374142,0.27997364,2670.7,2670.4,3.74462]
[1739488374300,0.27997364,2670.7,2670.6,0.06575482]
[1739488374501,0.27997364,2670.7,2670.5,3.74458]
[1739488374724,0.27997364,2670.7,2670.6,3.81022482]
[1739488375470,0.27997364,2670.7,2670.6,4.5657053]
[1739488375632,0.27997364,2670.7,2670.6,5.3924053]
[1739488376931,2.252,2671.2,2670.8,3.74417]
[1739488377316,2.252,2671.2,2670.9,0.0649862]
[1739488377517,2.252,2671.2,2670.9,3.8089762]
[1739488377931,2.252,2671.3,2671.1,3.74377]
[1739488378155,2.252,2671.3,2671.0,4.56625]
[1739488378454,2.252,2671.3,2671.1,3.74374]
[1739488378657,2.252,2671.3,2671.1,3.8087262]
[1739488379035,2.252,2671.4,2671.1,3.8087262]
[1739488379421,2.252,2671.4,2671.1,0.0649862]
[1739488380258,3.74354,2671.3,2671.1,0.0649862]
[1739488380633,3.7437,2671.2,2670.9,1.28030862]
[1739488380836,3.7437,2671.2,2670.8,4.49888]
[1739488381660,3.7437,2671.2,2670.7,5.25]
[1739488381661,2.6107,2671.1,2670.7,5.25]
[1739488381868,6.27530443,2671.3,2670.8,3.74407]
[1739488382017,0.27973443,2671.1,2670.8,3.74407]
[1739488382476,0.27973443,2671.1,2670.8,7.48819]
[1739488382692,0.27973443,2671.1,2671.0,3.74391]
[1739488383417,0.27973443,2671.1,2671.0,9.77991]
[1739488383848,0.3587,2672.0,2671.6,3.74297]
[1739488384210,5.939,2672.3,2671.6,3.74297]
[1739488384211,0.3587,2672.2,2671.7,4.5403]
[1739488384878,2.252,2672.2,2671.7,1.77653]
[1739488385079,2.252,2672.3,2671.8,3.74279]
[1739488385287,2.252,2672.3,2671.9,3.74258]
[1739488385796,2.252,2672.3,2671.8,3.74279]
[1739488386097,2.252,2672.3,2671.9,3.74255]
[1739488386360,2.252,2672.3,2671.9,4.668737]
[1739488386926,5.99412,2672.3,2671.9,0.926187]
[1739488387132,3.74231,2672.2,2671.7,1.77653]
[1739488387277,3.74245,2672.1,2671.7,1.77653]
[1739488387621,3.74245,2672.1,2671.8,0.06389508]
[1739488388036,3.74245,2672.1,2671.7,1.77653]
[1739488388173,3.74223,2672.2,2671.9,0.06389508]
[1739488388368,2.252,2672.3,2671.8,4.819718]
[1739488388604,2.252,2672.3,2672.0,0.06389508]
[1739488388791,2.252,2672.3,2671.9,3.74264]
[1739488389093,3.74223,2672.2,2671.8,1.076958]
[1739488389473,7.48454,2672.2,2671.9,0.06389508]
[1739488389673,5.99409,2672.3,2671.9,0.06389508]
[1739488390505,3.74226,2672.2,2671.9,0.06389508]
[1739488391356,2.252,2672.3,2671.9,0.06389508]
[1739488391487,2.252,2672.3,2672.0,3.74251]
[1739488391689,0.6307,2672.4,2672.1,0.06248208]
[1739488392009,6.62477,2672.4,2672.1,0.06248208]
[1739488392526,6.62477,2672.4,2672.2,0.06248208]
[1739488392707,6.62477,2672.4,2671.9,8.99265]
[1739488392906,2.6107,2672.4,2672.1,3.74231]
[1739488393109,2.252,2672.5,2672.1,4.56121]
[1739488393450,5.99385,2672.5,2672.2,0.06171413]
[1739488393742,2.252,2672.5,2672.2,0.06171413]
[1739488393982,3.74204,2672.4,2672.2,0.06171413]
[1739488394183,3.74209,2672.3,2672.2,0.06171413]
[1739488394675,3.74209,2672.3,2671.9,5.25]
[1739488394877,3.74209,2672.3,2672.2,0.06171413]
[1739488395086,3.74209,2672.3,2671.9,5.25]
[1739488395227,3.74209,2672.3,2672.2,0.06171413]
[1739488395433,6.54409,2672.4,2671.9,8.99263]
[1739488395662,10.28614,2672.4,2672.2,0.06171413]
[1739488395971,6.54405,2672.4,2672.3,0.06171413]
[1739488396325,6.54405,2672.4,2671.9,8.99263]
[1739488396677,4.29205,2672.4,2672.0,0.06169518]
[1739488396833,0.271,2672.5,2672.1,0.7724]
[1739488397035,0.271,2672.5,2672.1,4.51464]
[1739488397265,0.271,2672.5,2672.1,8.25691]
[1739488397468,0.271,2672.5,2672.2,0.06169518]
[1739488398251,4.01281,2672.5,2672.2,0.06169518]
[1739488398595,0.271,2672.5,2672.2,0.06169518]
[1739488399693,4.01256,2672.7,2672.3,3.74202]
[1739488400404,4.01256,2672.7,2672.4,0.06169518]
[1739488400549,5.99356,2672.7,2672.4,0.06169518]
[1739488400907,7.48345,2672.6,2672.4,0.06169518]
[1739488401044,3.74169,2672.6,2672.2,8.99221]
[1739488401246,3.74169,2672.6,2672.5,0.06169518]
[1739488401462,3.74169,2672.6,2672.2,8.99221]
[1739488401661,3.74169,2672.6,2672.5,0.06169518]
[1739488401876,3.74169,2672.6,2672.2,8.99221]
[1739488402077,3.74169,2672.6,2672.5,0.06169518]
[1739488402280,3.74169,2672.6,2672.2,8.99221]
[1739488402496,3.74169,2672.6,2672.5,0.06169518]
[1739488402811,2.802,2672.4,2672.2,5.25]
[1739488403104,4.10079,2672.3,2672.2,5.25]
[1739488404145,4.10079,2672.3,2671.8,0.8113]
[1739488404146,3.74233,2672.2,2671.9,5.25]
[1739488404365,3.74233,2672.2,2672.0,0.06142981]
[1739488404853,0.3587,2672.3,2672.0,0.06142981]
[1739488406031,4.1008,2672.3,2672.0,0.06142981]
[1739488406924,2.252,2672.2,2672.0,0.06142981]
[1739488407133,3.74225,2672.2,2672.0,0.06142981]
[1739488408522,6.54398,2672.4,2672.0,0.06142981]
[1739488408731,3.74211,2672.3,2672.0,0.06142981]
[1739488409424,3.74223,2672.2,2672.0,0.06142981]
[1739488410677,4.10107,2672.1,2672.0,0.06142981]
[1739488410976,6.91057,2672.1,2672.0,0.06142981]
[1739488411408,2.252,2671.9,2671.5,0.8044]
[1739488411593,2.252,2671.9,2671.3,4.52979]
[1739488411797,3.74283,2671.8,2671.6,0.06156249]
[1739488411975,3.74283,2671.8,2671.3,5.357123]
[1739488412176,2.252,2671.9,2671.7,0.06156249]
[1739488412372,2.802,2671.8,2671.3,0.7863]
[1739488412731,2.802,2671.8,2670.9,5.78748]
[1739488412732,6.54524,2671.5,2671.1,3.74377]
[1739488413283,6.54524,2671.5,2671.0,0.7509]
[1739488413708,3.74342,2671.4,2671.0,0.7509]
[1739488413921,6.54524,2671.5,2671.0,4.49473]
[1739488414115,2.252,2671.7,2671.3,3.74347]
[1739488414425,5.99493,2671.7,2671.3,3.74347]
[1739488415228,3.74309,2671.6,2671.1,3.74364]
[1739488415532,3.74309,2671.6,2671.1,7.48734]
[1739488416229,3.74328,2671.5,2671.0,5.0875617]
[1739488416399,3.74345,2671.4,2671.0,0.7509]
[1739488417090,2.252,2671.3,2671.0,0.7509]
[1739488417289,5.9955,2671.3,2671.0,0.7509]
[1739488418687,2.252,2671.4,2671.0,0.7509]
[1739488419031,2.252,2671.4,2671.0,4.49478]
[1739488419200,5.99536,2671.4,2671.0,4.49478]
[1739488419403,2.252,2671.4,2671.1,0.06268108]
[1739488419821,2.252,2671.4,2671.1,3.80644108]
[1739488422930,5.99537,2671.4,2671.1,0.06268108]
[1739488423841,5.99563,2671.2,2671.1,0.06268108]
[1739488424234,2.252,2671.2,2671.1,0.06268108]
[1739488424908,5.99563,2671.2,2671.1,0.06268108]
[1739488425432,2.252,2671.2,2671.1,0.06268108]
[1739488426227,5.99563,2671.2,2671.1,0.06268108]
[1739488426706,2.252,2671.0,2670.9,5.25]
[1739488427037,2.252,2671.0,2670.9,8.99405]
[1739488427789,2.252,2671.3,2670.9,8.99405]
[1739488428514,2.252,2671.3,2670.9,12.73801]
[1739488428788,2.252,2671.3,2670.9,8.99404]
[1739488429529,2.252,2671.3,2670.9,12.73808]
[1739488429724,2.252,2671.3,2670.9,8.99404]
[1739488429939,2.252,2671.3,2671.0,3.74389]
[1739488430984,5.99549,2671.3,2670.9,8.99404]
[1739488431189,5.99549,2671.3,2670.9,5.25]
[1739488431971,2.252,2671.3,2670.9,8.99393]
[1739488432127,2.252,2671.3,2670.9,8.99403]
[1739488432833,2.252,2671.2,2671.0,0.7542]
[1739488433036,2.252,2671.2,2671.1,3.74377]
[1739488433835,2.252,2671.3,2671.1,3.74377]
[1739488434037,2.252,2671.3,2671.2,3.74363]
[1739488434243,2.252,2671.3,2671.2,4.193413]
[1739488434443,2.252,2671.3,2671.2,4.25449498]
[1739488435071,4.01316,2671.6,2671.2,4.25449498]
[1739488435072,2.252,2671.5,2671.2,4.25449498]
[1739488435289,2.252,2671.5,2671.2,0.06108198]
[1739488435429,5.99523,2671.5,2671.2,0.06108198]
[1739488435770,2.252,2671.5,2671.3,0.06099663]
[1739488435974,2.252,2671.5,2671.2,3.74363]
[1739488436126,2.252,2671.5,2671.4,0.06099663]
[1739488436330,2.252,2671.5,2671.2,3.74363]
[1739488436538,2.252,2671.5,2671.3,0.06099663]
[1739488436826,2.252,2671.5,2671.2,3.74363]
[1739488437159,2.252,2671.6,2671.2,3.74363]
[1739488437477,2.252,2671.6,2671.3,0.06099663]
[1739488437779,2.252,2671.6,2671.2,3.74363]
[1739488437941,2.252,2671.6,2671.4,0.06099663]
[1739488438141,2.252,2671.6,2671.2,3.74363]
[1739488438357,2.252,2671.6,2671.3,0.06099663]
[1739488438652,4.29276,2671.9,2671.0,0.7542]
[1739488438653,2.252,2671.5,2671.4,3.74327]
[1739488438858,2.252,2671.5,2671.4,4.61596663]
[1739488439905,2.252,2671.6,2671.4,0.87269663]
[1739488440521,2.252,2671.6,2671.4,4.61604663]
[1739488440726,2.252,2671.5,2671.4,1.47102314]
[1739488441041,2.252,2672.0,2671.9,0.7611]
[1739488441353,3.74182,2672.5,2672.0,3.74241]
[1739488441551,3.74182,2672.5,2672.1,0.06064579]
[1739488441867,0.3587,2672.6,2672.3,3.74208]
[1739488442070,2.252,2672.5,2672.3,3.74205]
[1739488442223,2.252,2672.4,2672.3,3.74205]
[1739488442895,2.252,2672.4,2672.2,4.5032]
[1739488443077,2.252,2672.4,2672.2,8.24535]
[1739488443401,5.99388,2672.5,2672.0,9.76554]
[1739488443565,2.252,2672.3,2672.0,5.25]
[1739488444121,2.252,2672.1,2672.0,5.25]
[1739488445095,5.99434,2672.2,2672.0,5.25]
[1739488445265,5.99437,2672.1,2672.0,5.25]
[1739488445596,2.252,2672.1,2672.0,5.25]
[1739488445816,2.252,2672.1,2672.0,5.434282]
[1739488446021,2.252,2672.4,2672.0,5.434282]
[1739488446307,2.252,2672.4,2672.0,4.53501]
[1739488446907,2.252,2672.4,2672.1,3.74236]
[1739488447118,4.56182,2672.5,2672.1,3.74236]
[1739488447119,2.252,2672.3,2672.1,3.74223]
[1739488447707,2.522,2672.6,2672.2,3.74223]
[1739488447904,6.26367,2672.6,2672.2,3.74223]
[1739488448107,2.522,2672.6,2672.2,3.74223]
[1739488448309,2.252,2672.7,2672.4,3.74192]
[1739488448511,2.252,2672.7,2672.3,4.5345]
[1739488448827,2.252,2672.7,2672.4,3.74192]
[1739488449128,2.252,2672.7,2672.3,4.53458]
[1739488449553,2.252,2672.7,2672.4,3.80178936]
[1739488450448,5.99362,2672.7,2672.4,0.05984936]
[1739488450651,2.252,2672.7,2672.4,0.05984936]
[1739488450821,2.252,2672.7,2672.4,3.80179936]
[1739488451200,2.252,2672.6,2672.5,3.74179]
[1739488451606,2.252,2672.6,2672.5,3.80163936]
[1739488452311,2.252,2672.8,2672.5,0.05984936]
[1739488452911,2.252,2672.8,2672.5,3.80163936]
[1739488453956,2.252,2672.8,2672.5,0.05984936]
[1739488454893,5.99343,2672.8,2672.5,0.05984936]
[1739488455196,4.56126,2672.9,2672.5,0.05984936]
[1739488455197,2.252,2672.6,2672.5,0.05984936]
[1739488455577,5.99367,2672.6,2672.5,0.05984936]
[1739488456314,5.99367,2672.6,2672.5,3.80161936]
[1739488456315,2.252,2672.6,2672.5,3.80161936]
[1739488456478,2.252,2672.6,2672.5,5.6146313]
[1739488457097,2.252,2673.0,2672.5,1.8728613]
[1739488457304,2.252,2673.1,2672.8,3.74132]
[1739488457706,2.252,2673.1,2672.9,3.80013208]
[1739488458058,2.252,2673.1,2672.9,4.60283208]
[1739488458264,2.252,2673.1,2672.9,0.86159208]
[1739488458762,5.993,2673.1,2672.9,0.86159208]
[1739488458991,5.993,2673.1,2672.9,0.05889208]
[1739488459389,2.252,2672.9,2672.7,0.8027]
[1739488459807,5.99327,2672.9,2672.7,0.8027]
[1739488459976,5.99327,2672.9,2672.5,5.25]
[1739488459977,2.6107,2672.9,2672.5,5.25]
[1739488460178,2.252,2672.7,2672.5,5.25]
[1739488460383,5.99367,2672.6,2672.5,5.25]
[1739488461781,2.252,2672.3,2672.1,5.25]
[1739488461986,2.252,2672.2,2672.1,5.25]
[1739488463232,2.252,2672.3,2672.1,5.25]
[1739488464113,2.252,2672.5,2672.3,3.74207]
[1739488464500,2.252,2672.5,2672.4,0.05908162]
[1739488465235,2.252,2672.6,2672.4,0.05908162]
[1739488465439,2.252,2672.6,2672.4,4.61991162]
[1739488466406,2.252,2672.6,2672.4,9.86991162]
[1739488466858,2.252,2672.6,2672.4,6.12798162]
[1739488467150,5.99376,2672.6,2672.4,5.30908162]
[1739488468147,2.252,2672.6,2672.4,5.30908162]
[1739488468449,2.252,2672.7,2672.4,9.05101162]
[1739488469465,2.252,2672.7,2672.4,5.30908162]
[1739488469664,2.522,2672.8,2672.6,4.5008]
[1739488470170,2.252,2673.0,2672.8,3.74131]
[1739488470878,2.252,2673.0,2672.9,0.05885418]
[1739488472071,2.252,2673.0,2672.7,8.99142]
[1739488472271,2.252,2673.0,2672.9,0.05885418]
[1739488472453,2.252,2673.0,2672.7,5.25]
[1739488472454,2.6107,2673.0,2672.7,5.25]
[1739488472617,5.99339,2672.8,2672.7,5.25]
[1739488473254,2.252,2672.8,2672.7,5.25]
[1739488473675,2.252,2672.9,2672.7,5.25]
[1739488473884,2.252,2672.8,2672.7,5.25]
[1739488474677,5.99339,2672.8,2672.7,5.25]
[1739488475475,3.74162,2672.7,2672.4,5.25]
[1739488476378,5.99373,2672.6,2672.4,5.25]
[1739488476685,2.252,2672.6,2672.4,8.99193]
[1739488476866,2.252,2672.6,2672.4,10.623854]
[1739488477681,2.252,2672.8,2672.4,10.623854]
[1739488477879,2.252,2672.8,2672.5,3.74181]
[1739488479588,2.252,2672.8,2672.4,8.99193]
[1739488479589,2.252,2672.8,2672.6,0.05862677]
[1739488479736,2.252,2672.7,2672.6,0.05862677]
[1739488479938,2.252,2672.7,2672.4,5.25]
[1739488480283,2.252,2672.7,2672.6,0.05862677]
[1739488480469,2.252,2672.7,2672.4,5.25]
[1739488480674,3.74128,2672.9,2672.6,0.05862677]
[1739488480675,0.55,2672.9,2672.6,0.05862677]
[1739488480883,2.252,2672.7,2672.4,5.25]
[1739488481209,2.252,2672.7,2672.5,3.74174]
[1739488481893,2.252,2672.9,2672.5,3.74174]
[1739488482097,2.252,2672.9,2672.4,5.25]
[1739488482254,3.74169,2672.6,2672.4,5.25]
[1739488482453,5.99369,2672.6,2672.4,5.25]
[1739488482708,2.252,2672.6,2672.4,5.25]
[1739488482996,2.252,2672.6,2672.4,6.881946]
[1739488483595,2.252,2672.6,2672.4,10.623876]
[1739488485242,2.252,2672.6,2672.4,6.881946]
[1739488486203,2.252,2672.6,2672.4,5.25]
[1739488486382,2.252,2672.5,2672.4,5.25]
[1739488486996,2.252,2672.5,2672.4,8.99195]
[1739488487500,2.252,2672.6,2672.4,8.99185]
[1739488488397,2.252,2672.6,2672.4,5.25]
[1739488489006,2.252,2672.6,2672.4,8.99188]
[1739488490156,2.252,2672.6,2672.3,3.74207]
[1739488490663,2.252,2672.6,2672.4,3.74187]
[1739488490870,2.252,2672.6,2672.3,3.74208]
[1739488491202,2.252,2672.8,2672.4,3.74185]
[1739488491708,5.99347,2672.8,2672.4,3.74185]
[1739488493401,2.252,2672.6,2672.2,9.59912]
[1739488493601,5.99378,2672.6,2672.2,9.59912]
[1739488493905,2.252,2672.6,2672.3,3.74209]
[1739488494070,2.252,2672.6,2672.3,5.158121]
[1739488494273,5.99369,2672.6,2672.3,1.416031]
[1739488494658,5.99369,2672.6,2672.4,0.05852254]
[1739488495909,2.252,2672.6,2672.4,0.05852254]
[1739488496587,2.252,2672.6,2672.4,3.80041254]
[1739488496805,2.252,2672.6,2672.4,5.22126889]
[1739488496952,2.252,2672.7,2672.4,1.47937889]
[1739488497306,2.252,2672.7,2672.4,0.05852254]
[1739488498905,2.252,2672.6,2672.4,0.05852254]
[1739488499783,2.252,2672.8,2672.5,3.74181]
[1739488499984,2.252,2672.8,2672.5,4.52451]
[1739488500189,2.252,2672.8,2672.6,0.05855096]
[1739488500685,2.252,2672.8,2672.7,3.74153]
[1739488500883,2.252,2673.0,2672.7,3.74153]
[1739488501424,2.252,2673.0,2672.8,0.05855096]
[1739488501776,2.252,2673.2,2672.9,4.55035]
[1739488501994,2.252,2673.2,2672.9,4.60890096]
[1739488503117,2.252,2673.2,2672.9,0.86765096]
[1739488503527,5.99292,2673.2,2672.9,0.86765096]
[1739488503684,5.99303,2673.1,2672.9,0.05855096]
[1739488503883,5.99303,2673.1,2672.7,0.7857]
[1739488504096,5.99303,2673.1,2672.8,0.05774576]
[1739488504508,2.252,2673.1,2672.8,3.7413]
[1739488504696,2.252,2673.2,2672.9,0.05566987]
[1739488504894,5.99286,2673.2,2672.9,0.05566987]
[1739488505425,5.99302,2673.1,2672.9,0.05566987]
[1739488505628,5.99311,2673.0,2672.9,0.05566987]
[1739488505779,5.99353,2672.7,2672.6,5.25]
[1739488505978,7.84032,2673.3,2672.6,8.99167]
[1739488506311,4.0108,2673.3,2672.8,3.74133]
[1739488507030,2.252,2673.2,2672.8,3.74133]
[1739488507234,2.252,2673.2,2672.9,3.74118]
[1739488507428,2.252,2673.2,2672.8,3.74133]
[1739488507630,2.252,2673.2,2672.9,0.453963]
[1739488508431,2.252,2673.2,2672.9,4.195173]
[1739488508633,2.252,2673.4,2673.1,0.7603]
[1739488508834,2.522,2673.4,2673.1,0.7603]
[1739488509542,2.522,2673.4,2673.2,0.05575512]
[1739488509835,3.74069,2673.3,2673.2,0.05575512]
[1739488510022,5.99269,2673.3,2673.2,0.05575512]
[1739488510417,6.90139,2673.3,2673.2,0.05575512]
[1739488510926,5.99305,2673.1,2672.6,6.0066]
[1739488511127,2.252,2673.1,2672.7,4.716338]
[1739488511534,2.252,2673.1,2672.6,6.0066]
[1739488511734,0.82,2673.4,2672.6,5.25]
[1739488511735,5.99353,2672.7,2672.6,5.25]
[1739488512241,2.252,2673.0,2672.6,5.25]
[1739488512393,2.252,2673.0,2672.6,8.9916]
[1739488512907,2.252,2673.0,2672.6,8.99159]
[1739488515627,5.99311,2673.0,2672.6,8.99159]
[1739488516068,5.99311,2673.0,2672.6,5.25]
[1739488516274,9.7343,2673.0,2672.6,5.25]
[1739488516552,5.99311,2673.0,2672.6,5.25]
[1739488516757,2.252,2673.1,2672.7,3.74146]
[1739488516946,2.252,2673.1,2672.8,0.8273]
[1739488517873,2.252,2673.2,2672.8,0.8273]
[1739488518079,5.99286,2673.2,2672.8,0.8273]
[1739488519068,2.252,2673.2,2672.8,4.56865]
[1739488519516,2.252,2673.3,2672.8,6.0594944]
[1739488519663,2.252,2673.3,2673.0,4.52224]
[1739488520010,5.99276,2673.3,2673.0,0.7812]
[1739488520166,5.9929,2673.2,2672.8,2.3191144]
[1739488520663,3.74105,2673.1,2672.8,2.3191144]
[1739488521065,5.99287,2673.2,2672.8,2.3191144]
[1739488521298,5.99287,2673.2,2672.9,0.23191144]
[1739488521681,2.252,2673.2,2672.9,0.23191144]
[1739488522209,5.99284,2673.2,2672.9,0.23191144]
[1739488522914,5.99284,2673.2,2672.9,5.48191144]
[1739488523210,2.252,2673.2,2672.9,9.22309144]
[1739488523415,2.252,2673.2,2673.0,0.78010258]
[1739488524311,2.252,2673.2,2673.1,0.05448258]
[1739488525415,2.252,2673.3,2673.1,0.05448258]
[1739488525616,2.252,2673.3,2673.2,0.813]
[1739488526188,2.252,2673.3,2673.2,0.86748258]
[1739488526824,5.99269,2673.3,2673.2,0.05448258]
[1739488527027,6.54269,2673.3,2673.2,0.05448258]
[1739488527221,5.99298,2673.1,2672.9,5.25]
[1739488529083,5.99311,2673.0,2672.9,5.25]
[1739488532949,5.99311,2673.0,2672.9,5.23251032]
[1739488534047,2.252,2673.0,2672.9,5.23251032]
[1739488534723,2.252,2673.0,2672.6,4.54961]
[1739488534923,2.252,2673.0,2672.6,1.637145]
[1739488535123,2.252,2672.9,2672.6,0.808]
[1739488535327,3.74171,2672.6,2672.4,0.7913]
[1739488535635,5.99371,2672.6,2672.4,0.7913]
[1739488536360,2.252,2672.6,2672.4,0.7913]
[1739488538438,2.252,2672.9,2672.4,2.42085903]
[1739488538725,2.252,2672.9,2672.8,3.74139]
[1739488539072,0.27,2673.2,2672.8,3.74125]
[1739488539205,3.74098,2673.1,2672.7,0.8075]
[1739488539410,3.74098,2673.1,2672.9,0.05471933]
[1739488539708,5.99298,2673.1,2673.0,0.05471933]
[1739488539924,5.99298,2673.1,2672.7,0.8075]
[1739488540127,5.99298,2673.1,2672.8,0.05471933]
[1739488540321,2.252,2673.1,2672.8,3.74134]
[1739488540520,2.252,2673.1,2672.9,0.05471933]
[1739488541858,2.252,2673.3,2672.9,3.79586933]
[1739488542074,2.252,2673.3,2673.0,3.74099]
[1739488542564,2.252,2673.3,2673.1,0.05464356]
[1739488543648,3.61795794,2673.5,2673.1,0.05464356]
[1739488543649,2.252,2673.5,2673.2,0.7613]
[1739488544006,5.9925,2673.5,2673.2,0.7613]
[1739488544212,5.9925,2673.5,2673.3,0.05464356]
[1739488544411,5.99255,2673.4,2673.3,0.05464356]
[1739488544655,3.74071,2673.3,2672.9,4.50246]
[1739488544860,5.99283,2673.2,2672.9,0.7613]
[1739488545361,2.252,2673.0,2672.8,2.77748]
[1739488545975,2.252,2673.2,2672.8,6.51879]
[1739488546808,5.99292,2673.2,2672.7,8.24418]
[1739488547012,5.99292,2673.2,2672.8,3.74137]
[1739488547705,5.99275,2673.3,2672.8,3.74137]
[1739488547906,5.99275,2673.3,2672.7,4.50274]
[1739488548112,5.99287,2673.2,2672.7,4.50273]
[1739488548345,5.99287,2673.2,2672.8,3.74137]
[1739488548559,2.252,2673.2,2672.7,0.7613]
[1739488548680,2.252,2673.2,2672.9,3.74114]
[1739488549178,2.252,2673.3,2673.0,3.74111]
[1739488549579,2.252,2673.3,2673.1,3.74083]
[1739488549831,2.252,2673.3,2673.2,0.7548]
[1739488550782,2.252,2673.3,2673.2,4.49563]
[1739488551230,2.252,2673.4,2673.2,4.49563]
[1739488551725,2.252,2673.4,2673.2,0.7548]
[1739488551935,2.252,2673.4,2673.2,4.49561]
[1739488552141,2.252,2673.4,2673.2,0.7548]
[1739488552682,5.99258,2673.4,2673.2,0.7548]
[1739488552886,2.252,2673.4,2673.2,0.7548]
[1739488554434,2.252,2673.4,2673.3,0.05428369]
[1739488554732,5.99255,2673.4,2673.3,0.05428369]
[1739488554885,5.99255,2673.4,2673.0,9.79729032]
[1739488555085,5.99255,2673.4,2673.3,0.05428369]
[1739488555328,5.99255,2673.4,2673.0,9.79729032]
[1739488555533,5.99255,2673.4,2673.3,0.05428369]
[1739488555729,5.99255,2673.4,2673.0,6.05621032]
[1739488556334,5.99255,2673.4,2673.1,0.05428369]
[1739488560443,2.252,2673.4,2673.1,0.05428369]
[1739488560614,2.252,2673.4,2673.1,3.79524369]
[1739488560810,5.99263,2673.4,2673.1,0.05428369]
[1739488561316,2.252,2673.4,2673.1,3.79524369]
[1739488562609,2.252,2673.4,2673.1,0.05428369]
[1739488562955,5.9926,2673.4,2673.1,0.05428369]
[1739488563119,2.252,2673.4,2673.1,0.05428369]
[1739488563857,2.252,2673.4,2673.1,3.79524369]
[1739488564055,2.252,2673.3,2673.2,3.74081]
[1739488564411,2.252,2673.3,2673.2,3.79512212]
[1739488565145,2.252,2673.5,2673.2,3.79512212]
[1739488565458,2.252,2673.5,2673.2,0.05431212]
[1739488565878,2.252,2673.5,2673.3,3.74057]
[1739488566229,2.252,2673.6,2673.4,0.8306]
[1739488566418,2.252,2673.6,2673.4,4.57108]
[1739488566611,2.252,2673.6,2673.5,0.05431212]
[1739488568588,5.99227,2673.6,2673.5,0.05431212]
[1739488569165,5.99227,2673.6,2673.3,5.23251032]
[1739488569668,5.99227,2673.6,2673.4,0.05417954]
[1739488572983,5.99241,2673.5,2673.4,0.05417954]
[1739488573683,8.10041419,2673.5,2673.4,0.05417954]
[1739488573882,8.65041419,2673.5,2673.4,0.05417954]
[1739488574187,6.54255,2673.4,2673.3,5.23251032]
[1739488574574,6.54255,2673.4,2673.3,5.28636788]
[1739488575701,2.802,2673.4,2673.3,5.28636788]
[1739488576134,2.252,2673.4,2673.3,5.28636788]
[1739488576334,2.252,2673.4,2673.3,5.23251032]
[1739488576521,2.252,2673.4,2673.3,0.05419845]
[1739488576924,2.252,2673.4,2673.2,0.7747]
[1739488577091,2.252,2673.4,2673.3,0.05419845]
[1739488577812,2.252,2673.4,2673.2,0.7747]
[1739488577992,2.252,2673.4,2673.3,0.05419845]
[1739488578191,2.252,2673.4,2673.2,0.7747]